bitfinex-derivatives/quotes_SOLF0:USTF0_20260215
["timestamp","ask_amount","ask_price","bid_price","bid_amount"]
[1771136795999,2.21442163,89.98,89.943,10.0098]
[1771136796896,2.21442163,89.99,89.948,2.9255538]
[1771136797600,3.6663133,90.004,89.95,2.92555472]
[1771136797800,2.21442163,90.0,89.95,2.92555472]
[1771136798398,2.21442163,89.99,89.95,2.92555472]
[1771136800503,2.21442163,89.98,89.95,2.92555472]
[1771136801395,2.21442163,89.98,89.937,2.82565587]
[1771136801597,2.21442163,89.97,89.937,2.82565587]
[1771136802301,2.21442163,89.98,89.941,2.82154713]
[1771136802497,2.21442163,89.99,89.941,2.82154713]
[1771136803798,2.21442163,89.99,89.944,2.82237382]
[1771136803999,3.61817995,89.979,89.922,2.82236691]
[1771136804297,19.9988,90.037,89.922,2.82236691]
[1771136804298,2.21442163,89.95,89.922,2.82236691]
[1771136804501,2.21442163,89.96,89.922,2.82236691]
[1771136806801,2.21442163,89.95,89.904,3.27859736]
[1771136807002,3.61817995,90.013,89.904,3.27859736]
[1771136807304,5.83260158,90.0,89.941,3.27859118]
[1771136807896,3.61817995,89.999,89.941,3.27859118]
[1771136808098,2.21442163,89.99,89.941,3.27859118]
[1771136808909,2.21442163,89.99,89.946,10.0094]
[1771136810813,3.61817995,89.989,89.941,3.27859118]
[1771136811012,2.21442163,89.98,89.941,3.27859118]
[1771136811615,3.61817995,89.989,89.943,3.10477205]
[1771136811912,2.21442163,90.0,89.943,3.10477205]
[1771136812107,5.83260158,90.0,89.943,3.10477205]
[1771136812307,147.42,90.014,89.904,88.72]
[1771136812308,147.42,90.014,89.927,20.53925731]
[1771136812608,2.21442163,90.05,89.99,2.21442163]
[1771136812808,2.21442163,90.05,89.934,155.7239]
[1771136812809,2.21442163,90.04,89.98,2.21442163]
[1771136813002,2.21442163,90.04,89.908,60.73436498]
[1771136813003,43.75446763,90.02,89.97,2.21442163]
[1771136813208,41.540046,90.02,89.97,2.21442163]
[1771136813612,2.21442163,90.01,89.95,2.21442163]
[1771136813913,2.21442163,90.0,89.94,90.91442163]
[1771136814206,41.540046,90.01,89.94,90.91442163]
[1771136814407,2.21442163,90.0,89.94,90.91442163]
[1771136814604,41.64494551,89.989,89.93,2.21442163]
[1771136814813,2.21442163,89.98,89.93,2.21442163]
[1771136815007,41.64494551,89.989,89.91,5.9313443]
[1771136815607,41.64494551,89.989,89.907,20.53925731]
[1771136815810,41.64494551,89.989,89.89,5.9313443]
[1771136816708,41.77885614,89.986,89.907,10.0137]
[1771136817608,41.78032923,89.982,89.918,10.0125]
[1771136822312,41.80837826,89.979,89.906,10.0138]
[1771136822919,41.80837826,89.969,89.906,10.0138]
[1771136823623,41.80837826,89.967,89.889,10.0157]
[1771136824520,41.80837826,89.967,89.899,10.0146]
[1771136825023,41.80837826,89.967,89.911,10.0133]
[1771136827823,41.79536965,89.965,89.898,10.0147]
[1771136828723,41.81008822,89.963,89.898,10.0147]
[1771136829226,41.81008822,89.983,89.903,20.53925731]
[1771136829428,41.81008822,89.983,89.902,20.53925731]
[1771136829629,41.81008822,89.983,89.898,20.53925731]
[1771136829827,41.81008822,89.983,89.897,20.53925731]
[1771136830418,41.81008822,89.983,89.896,20.53925731]
[1771136830623,41.80398567,89.979,89.894,20.53925731]
[1771136830822,41.80398567,89.979,89.919,10.0124]
[1771136833123,41.80806381,89.976,89.907,10.0137]
[1771136834027,41.80806381,89.976,89.92,10.0123]
[1771136835926,41.80523932,89.969,89.881,20.53925731]
[1771136836132,41.80523932,89.969,89.871,88.72]
[1771136836133,41.80523932,89.969,89.88,20.53925731]
[1771136836329,41.80523932,89.969,89.879,20.53925731]
[1771136836529,41.80523932,89.969,89.88,20.53925731]
[1771136836729,41.81503878,89.955,89.896,10.015]
[1771136837430,5.93336619,89.99,89.89,5.93336619]
[1771136837431,41.81503878,89.971,89.89,5.93336619]
[1771136838432,41.81503878,89.971,89.922,10.0121]
[1771136838634,41.81503878,89.971,89.894,20.53925731]
[1771136838829,41.81503878,89.971,89.912,10.0132]
[1771136839433,51.82183878,89.971,89.9,10.0145]
[1771136840533,41.7825641,89.965,89.9,10.0145]
[1771136841226,41.7825641,89.963,89.9,10.0145]
[1771136843230,41.78047244,89.961,89.9,10.0145]
[1771136843826,41.78047244,89.961,89.909,10.0135]
[1771136848732,41.74347321,89.985,89.904,20.53925731]
[1771136848931,41.74347321,89.985,89.91,5.93336619]
[1771136849131,41.74347321,89.985,89.942,10.0098]
[1771136849542,41.74347321,89.985,89.915,20.53925731]
[1771136850729,41.74347321,89.985,89.936,10.0106]
[1771136851740,41.74347321,89.985,89.945,10.0095]
[1771136855143,41.74347321,89.985,89.888,27.36436498]
[1771136855144,41.74347321,89.985,89.913,20.53925731]
[1771136855346,41.74347321,89.985,89.9,20.53925731]
[1771136855546,41.74347321,89.985,89.898,20.53925731]
[1771136855741,41.86014507,89.969,89.884,20.53925731]
[1771136855935,41.86014507,89.969,89.885,20.53925731]
[1771136856737,41.87128571,89.966,89.9,10.0145]
[1771136858651,41.89069795,89.962,89.9,10.0145]
[1771136858852,41.89069795,89.949,89.9,10.0145]
[1771136863455,41.89069795,89.949,89.89,10.0157]
[1771136863652,41.89069795,89.949,89.871,20.53925731]
[1771136863852,41.89069795,89.949,89.862,20.53925731]
[1771136864253,41.89069795,89.949,89.861,20.53925731]
[1771136864458,41.9060621,89.947,89.861,20.53925731]
[1771136864957,41.9060621,89.935,89.869,10.018]
[1771136865861,41.9060621,89.932,89.869,10.018]
[1771136866960,41.91069623,89.929,89.858,10.0192]
[1771136867259,10.0116,89.927,89.853,431.7842323]
[1771136867562,41.91069623,89.926,89.853,431.7842323]
[1771136868062,10.0118,89.925,89.867,10.0182]
[1771136868257,41.84700981,89.924,89.867,10.0182]
[1771136871865,41.84700981,89.924,89.856,10.0194]
[1771136872363,41.84700981,89.924,89.866,10.0183]
[1771136872866,41.84700981,89.924,89.876,10.0172]
[1771136874170,41.84700981,89.924,89.886,10.0161]
[1771136880467,41.84700981,89.924,89.853,431.7842323]
[1771136880663,41.84700981,89.924,89.843,234.53452642]
[1771136880868,41.84783853,89.909,89.843,234.53452642]
[1771136881766,41.84783853,89.907,89.846,10.0205]
[1771136882772,41.84038286,89.904,89.846,10.0205]
[1771136883074,41.84038286,89.889,89.846,10.0205]
[1771136885574,41.84593782,89.869,89.833,10.022]
[1771136885777,3.782e-05,89.869,89.83,2.21942677]
[1771136886877,3.782e-05,89.869,89.841,10.0211]
[1771136888176,2.21942677,89.88,89.841,10.0211]
[1771136888479,21.0333084,89.883,89.841,10.0211]
[1771136888877,21.0333084,89.883,89.831,10.0222]
[1771136889278,2.21942677,89.88,89.831,10.0222]
[1771136889584,2.21942677,89.88,89.84,10.0212]
[1771136889772,21.0333084,89.883,89.84,10.0212]
[1771136889974,21.0333084,89.883,89.84,12.24062677]
[1771136890382,21.0333084,89.883,89.84,10.0212]
[1771136891383,298.2585578,89.931,89.84,10.0212]
[1771136891384,21.03570034,89.879,89.84,10.0212]
[1771136893183,21.02252392,89.869,89.81,2.21942677]
[1771136893588,21.02252392,89.859,89.81,2.21942677]
[1771136894786,21.02252392,89.859,89.817,10.0237]
[1771136894987,21.02252392,89.859,89.8,2.21942677]
[1771136895188,21.02137589,89.849,89.79,2.21942677]
[1771136895690,21.02137589,89.839,89.79,2.21942677]
[1771136896484,21.02137589,89.839,89.793,10.0264]
[1771136899192,21.02137589,89.839,89.782,10.0276]
[1771136899591,10.0202,89.85,89.756,110.0]
[1771136899592,20.98534391,89.849,89.79,2.21942677]
[1771136900192,23.1975082,89.84,89.79,2.21942677]
[1771136900895,23.1975082,89.84,89.791,10.0267]
[1771136901500,20.97808143,89.84,89.791,10.0267]
[1771136901797,23.1975082,89.84,89.781,10.0278]
[1771136901993,20.97808143,89.829,89.781,10.0278]
[1771136903399,20.97808143,89.829,89.79,10.0268]
[1771136906999,20.91218352,89.843,89.79,12.24622677]
[1771136907196,20.91218352,89.87,89.82,2.21942677]
[1771136907397,20.91218352,89.87,89.83,2.21942677]
[1771136908302,20.91218352,89.87,89.833,10.0219]
[1771136908893,20.90504076,89.889,89.84,2.21942677]
[1771136910503,20.90504076,89.889,89.833,10.0219]
[1771136913400,20.92125818,89.879,89.833,10.0219]
[1771136913606,20.92125818,89.879,89.822,10.0232]
[1771136914409,20.92125818,89.879,89.804,112.74]
[1771136914410,20.92125849,89.869,89.812,10.0244]
[1771136915703,20.92125849,89.869,89.82,2.21942677]
[1771136917903,20.92125849,89.869,89.812,10.0244]
[1771136918208,20.92125849,89.869,89.82,2.21942677]
[1771136920913,20.92125849,89.869,89.83,2.21942677]
[1771136922312,2.21942677,89.86,89.81,2.21942677]
[1771136922514,21.06005173,89.859,89.8,2.21942677]
[1771136923506,21.06005173,89.859,89.8,12.24502677]
[1771136923914,21.06005173,89.859,89.787,20.53925731]
[1771136924114,21.06005173,89.859,89.81,2.21942677]
[1771136924313,21.06005173,89.859,89.811,10.0245]
[1771136926814,21.06005173,89.859,89.81,2.21942677]
[1771136929515,21.06005173,89.859,89.809,10.0246]
[1771136929705,21.06005173,89.859,89.81,2.21942677]
[1771136930014,21.04964174,89.849,89.8,10.0257]
[1771136933610,10.0193,89.858,89.8,10.0257]
[1771136933611,21.00807717,89.87,89.81,2.21942677]
[1771136933806,21.00807717,89.87,89.82,2.21942677]
[1771136934710,21.0123557,89.859,89.799,30.56505731]
[1771136934917,21.0123557,89.849,89.79,2.21942677]
[1771136936116,21.0123557,89.849,89.765,111.66]
[1771136936117,21.0123557,89.849,89.8,2.21942677]
[1771136937616,21.0123557,89.849,89.795,10.0263]
[1771136941917,21.18107308,89.839,89.795,10.0263]
[1771136942123,21.18107308,89.839,89.792,10.0265]
[1771136942513,21.18082476,89.829,89.785,20.53925731]
[1771136942712,21.18082476,89.829,89.783,20.53925731]
[1771136943325,21.18082476,89.829,89.779,261.01047452]
[1771136943519,21.18082476,89.829,89.78,20.53925731]
[1771136943721,21.18082476,89.829,89.782,10.0277]
[1771136949021,21.18082476,89.829,89.79,12.24807923]
[1771136951221,21.17982296,89.848,89.799,10.0258]
[1771136953133,21.17863659,89.829,89.78,20.53925731]
[1771136953334,21.17863659,89.819,89.779,240.47121721]
[1771136953730,2.22127923,89.8,89.76,20.53925731]
[1771136953926,155.8475,89.863,89.744,18.03988553]
[1771136953927,2.22127923,89.79,89.744,18.03988553]
[1771136954329,2.22127923,89.79,89.745,10.0318]
[1771136954521,2.22127923,89.8,89.746,18.0431679]
[1771136955732,2.22127923,89.8,89.747,10.0316]
[1771136956023,2.22127923,89.8,89.748,18.0431679]
[1771136957928,2.22127923,89.8,89.75,18.00953321]
[1771136959432,2.22127923,89.8,89.75,20.23081244]
[1771136960832,10.026,89.798,89.739,10.0325]
[1771136961038,2.22127923,89.78,89.725,18.02034647]
[1771136961237,2.22127923,89.78,89.731,18.02034647]
[1771136961841,2.22127923,89.79,89.731,18.02034647]
[1771136962243,2.22127923,89.78,89.731,18.02034647]
[1771136963341,10.0255,89.803,89.75,20.24724032]
[1771136963645,2.22127923,89.8,89.75,20.24724032]
[1771136963835,2.22127923,89.79,89.73,2.22127923]
[1771136964041,2.22127923,89.79,89.731,18.02596109]
[1771136964446,2.22127923,89.78,89.731,18.02596109]
[1771136964642,2.22127923,89.78,89.722,10.0344]
[1771136964844,2.22127923,89.77,89.72,18.04251264]
[1771136965044,2.22127923,89.76,89.72,18.04251264]
[1771136970052,10.029,89.771,89.72,18.04251264]
[1771136970245,2.22127923,89.76,89.72,18.04251264]
[1771136970646,2.22127923,89.77,89.72,18.04251264]
[1771136971146,10.0292,89.769,89.72,18.04251264]
[1771136974343,2.22127923,89.76,89.72,18.04251264]
[1771136979548,2.22127923,89.75,89.706,18.05205376]
[1771136979751,2.22127923,89.74,89.706,18.05205376]
[1771136980054,2.22127923,89.73,89.681,18.05205376]
[1771136981054,2.22127923,89.72,89.681,18.05205376]
[1771136981651,2.22127923,89.72,89.666,233.02760197]
[1771136981652,2.22127923,89.73,89.683,18.07450288]
[1771136982650,2.22127923,89.72,89.683,18.07450288]
[1771136982854,20.0545,89.787,89.683,18.07450288]
[1771136982855,2.22127923,89.71,89.683,18.07450288]
[1771136983749,2.22127923,89.71,89.6,11.12]
[1771136983750,2.22127923,89.71,89.661,18.08047716]
[1771136983949,2.22127923,89.7,89.661,18.08047716]
[1771136984254,2.22127923,89.7,89.663,10.041]
[1771136984454,2.22127923,89.71,89.664,18.07749817]
[1771136991976,2.22127923,89.73,89.671,18.08548184]
[1771136992158,2.22127923,89.73,89.674,18.09972167]
[1771136992465,2.22127923,89.71,89.674,18.09972167]
[1771136992865,2.22127923,89.72,89.674,18.09972167]
[1771136993063,95.58,89.748,89.674,18.09972167]
[1771136993363,2.22127923,89.72,89.674,18.09972167]
[1771136995162,2.22127923,89.72,89.666,10.0406]
[1771136995367,2.22127923,89.7,89.646,18.07736382]
[1771136995665,2.22127923,89.72,89.661,18.07736382]
[1771136996067,2.22127923,89.71,89.661,18.07736382]
[1771136996561,2.22127923,89.71,89.672,18.07695777]
[1771136996760,2.22127923,89.72,89.672,18.07695777]
[1771136997556,2.22127923,89.71,89.672,18.07695777]
[1771136998659,2.22127923,89.72,89.676,18.19852893]
[1771137000069,10.0337,89.729,89.676,18.19852893]
[1771137000270,2.22127923,89.73,89.676,18.19852893]
[1771137000473,2.22127923,89.74,89.681,18.21039894]
[1771137000669,2.22127923,89.72,89.681,18.21039894]
[1771137000874,2.22814214,89.71,89.681,18.21039894]
[1771137002174,2.22814214,89.72,89.681,18.21039894]
[1771137004672,2.22814214,89.71,89.681,18.21039894]
[1771137005169,2.22814214,89.71,89.655,10.0419]
[1771137005368,2.22814214,89.7,89.661,18.20453465]
[1771137005877,88.86,89.728,89.661,18.20453465]
[1771137005878,2.22814214,89.69,89.661,18.20453465]
[1771137006668,11.12,89.768,89.634,18.2439626]
[1771137006669,2.22814214,89.67,89.634,18.2439626]
[1771137007075,2.22814214,89.66,89.634,18.2439626]
[1771137007770,2.22814214,89.67,89.634,18.2439626]
[1771137008368,10.0382,89.689,89.634,18.2439626]
[1771137008568,2.22814214,89.68,89.634,18.2439626]
[1771137009474,88.86,89.7,89.634,18.2439626]
[1771137009475,2.22814214,89.67,89.634,18.2439626]
[1771137009767,2.22814214,89.66,89.634,18.2439626]
[1771137012682,2.22814214,89.68,89.634,18.2439626]
[1771137012882,10.0384,89.687,89.634,18.2439626]
[1771137013286,2.22814214,89.67,89.634,18.2439626]
[1771137014376,2.22814214,89.69,89.639,18.19553249]
[1771137014780,2.22814214,89.68,89.639,18.19553249]
[1771137016486,2.22814214,89.67,89.639,18.19553249]
[1771137016688,2.22814214,89.69,89.639,18.19553249]
[1771137016889,2.22814214,89.68,89.639,18.19553249]
[1771137017089,2.22814214,89.68,89.642,18.22664043]
[1771137017388,2.22814214,89.69,89.642,18.22664043]
[1771137017590,2.22814214,89.7,89.653,18.22664043]
[1771137018286,2.22814214,89.7,89.655,18.22664043]
[1771137018487,2.22814214,89.68,89.655,18.22664043]
[1771137018989,2.22814214,89.67,89.627,10.045]
[1771137019193,2.22814214,89.67,89.628,18.25169218]
[1771137021988,11.12,89.738,89.628,18.25169218]
[1771137022191,2.22814214,89.69,89.634,18.28807196]
[1771137023785,2.22814214,89.69,89.636,10.044]
[1771137024095,2.22814214,89.68,89.637,18.28919406]
[1771137024294,2.22814214,89.67,89.611,18.30857221]
[1771137024499,11.12,89.744,89.6,88.86]
[1771137024500,2.22814214,89.69,89.641,18.30857221]
[1771137024695,2.22814214,89.67,89.641,18.30857221]
[1771137024896,2.22814214,89.66,89.611,18.30857221]
[1771137025794,12.26734214,89.68,89.623,18.30857221]
[1771137026207,2.22814214,89.67,89.623,18.30857221]
[1771137026700,2.22814214,89.67,89.626,18.26248207]
[1771137027003,2.22814214,89.66,89.626,18.26248207]
[1771137027799,2.22814214,89.69,89.641,18.26248207]
[1771137028903,2.22814214,89.69,89.645,18.27648457]
[1771137029704,2.22814214,89.68,89.645,18.27648457]
[1771137031193,2.22814214,89.69,89.645,18.27648457]
[1771137033106,2.22814214,89.68,89.645,18.27648457]
[1771137034498,2.22814214,89.69,89.645,18.27648457]
[1771137039213,2.22814214,89.69,89.639,10.0437]
[1771137039214,2.22814214,89.76,89.681,12.20484671]
[1771137039413,2.22814214,89.76,89.701,12.20484671]
[1771137040714,10.0304,89.759,89.701,12.20484671]
[1771137041713,2.22814214,89.78,89.721,12.20760638]
[1771137042210,2.22814214,89.77,89.721,12.20760638]
[1771137043007,10.0258,89.8,89.723,12.18289103]
[1771137043214,2.22814214,89.78,89.731,12.18259246]
[1771137043417,2.22814214,89.79,89.731,12.18259246]
[1771137043712,88.88,89.804,89.733,12.18259246]
[1771137043713,2.22814214,89.78,89.733,12.18259246]
[1771137044609,2.22814214,89.79,89.734,10.033]
[1771137044814,2.22814214,89.79,89.735,12.18263833]
[1771137047516,2.22814214,89.78,89.735,12.18263833]
[1771137048215,88.88,89.806,89.735,12.18263833]
[1771137048216,2.22814214,89.77,89.735,12.18263833]
[1771137048412,2.22814214,89.79,89.735,12.18263833]
[1771137051222,2.22814214,89.78,89.735,12.18263833]
[1771137053814,2.22814214,89.79,89.735,12.18263833]
[1771137054721,2.22814214,89.79,89.739,12.18867209]
[1771137054921,175.8856,89.863,89.739,12.18867209]
[1771137054922,175.8862,89.863,89.739,12.18867209]
[1771137055123,2.22814214,89.79,89.74,2.22814214]
[1771137055324,2.22814214,89.79,89.742,10.0322]
[1771137055524,2.22814214,89.79,89.743,12.18867209]
[1771137059121,10.36060092,89.88,89.75,12.19969031]
[1771137059326,2.22814214,89.81,89.771,11.08561924]
[1771137060536,2.22814214,89.83,89.781,11.08467003]
[1771137060725,2.22814214,89.84,89.781,11.08467003]
[1771137060926,2.22202342,89.82,89.791,11.08467003]
[1771137061126,2.22202342,89.81,89.771,11.08467003]
[1771137061427,2.22202342,89.81,89.69,20.0759]
[1771137061428,2.22202342,89.79,89.741,11.08467003]
[1771137062728,2.22202342,89.79,89.753,11.09420069]
[1771137064439,2.22202342,89.8,89.755,11.16773671]
[1771137064731,10.0236,89.82,89.755,11.16773671]
[1771137064732,2.22202342,89.81,89.755,11.16773671]
[1771137065131,2.22202342,89.79,89.756,11.16773671]
[1771137065839,2.22202342,89.78,89.721,11.16773671]
[1771137066233,2.22202342,89.79,89.731,11.17582328]
[1771137067336,2.22202342,89.79,89.698,88.88]
[1771137067337,2.22202342,89.81,89.761,11.17582328]
[1771137068741,2.22202342,89.81,89.762,10.0299]
[1771137068940,2.22202342,89.81,89.75,2.22202342]
[1771137068941,2.22202342,89.81,89.763,11.21490372]
[1771137069835,2.22202342,89.81,89.766,11.21490372]
[1771137070539,2.22202342,89.78,89.748,11.2090452]
[1771137070844,2.22202342,89.8,89.751,11.2090452]
[1771137071432,20.0372,89.865,89.754,10.0308]
[1771137071644,2.22202342,89.84,89.781,11.2090452]
[1771137072035,2.22202342,89.84,89.791,11.2090452]
[1771137072239,2.22202342,89.85,89.791,11.2090452]
[1771137072443,2.22202342,89.85,89.801,11.23560481]
[1771137073840,2.22202342,89.85,89.802,11.23624637]
[1771137076648,10.0188,89.862,89.802,11.23624637]
[1771137076848,2.22202342,89.85,89.802,11.23624637]
[1771137079858,2.22202342,89.86,89.811,11.30985168]
[1771137080153,2.22202342,89.87,89.811,11.30985168]
[1771137080461,2.22202342,89.87,89.813,11.39584087]
[1771137081062,2.22202342,89.86,89.813,11.39584087]
[1771137081261,88.86,89.878,89.813,11.39584087]
[1771137081556,2.22202342,89.87,89.813,11.39584087]
[1771137081749,2.22202342,89.86,89.813,11.39584087]
[1771137083555,2.22202342,89.85,89.813,11.39584087]
[1771137084450,2.22202342,89.84,89.791,11.42147693]
[1771137084655,2.22202342,89.82,89.776,11.42147693]
[1771137085952,2.22202342,89.83,89.776,11.42147693]
[1771137086359,10.0225,89.829,89.776,11.42147693]
[1771137086661,2.22202342,89.82,89.776,11.42147693]
[1771137086963,10.0225,89.829,89.776,11.42147693]
[1771137087566,10.0212,89.841,89.776,11.42147693]
[1771137088165,10.0212,89.841,89.777,10.0283]
[1771137088365,10.0212,89.841,89.778,11.44488088]
[1771137089864,10.0212,89.841,89.76,5.95324881]
[1771137089865,10.0199,89.852,89.78,11.44488088]
[1771137090865,88.86,89.864,89.782,11.43890589]
[1771137091060,5.95324881,89.85,89.782,11.43890589]
[1771137091765,10.0206,89.846,89.782,11.43890589]
[1771137092767,10.0194,89.857,89.793,11.45462426]
[1771137093759,10.0194,89.857,89.795,10.0263]
[1771137093963,10.0194,89.857,89.796,11.45462426]
[1771137094576,10.0204,89.848,89.796,11.45462426]
[1771137097370,10.0189,89.862,89.798,10.0259]
[1771137097576,10.0189,89.862,89.799,11.49744062]
[1771137099775,10.02,89.852,89.799,11.49744062]
[1771137099975,5.95324881,89.87,89.761,11.50824637]
[1771137100175,5.95324881,89.85,89.761,11.50824637]
[1771137100378,10.0199,89.852,89.789,11.50115693]
[1771137101377,10.0189,89.862,89.794,11.50115693]
[1771137102769,10.0189,89.862,89.808,11.51385995]
[1771137103575,10.0189,89.862,89.81,11.51405143]
[1771137107380,10.02,89.852,89.81,11.51405143]
[1771137108989,2.22109037,89.85,89.81,11.51405143]
[1771137109188,2.22109037,89.86,89.81,11.51405143]
[1771137110884,10.0194,89.857,89.81,11.51405143]
[1771137112482,2.22109037,89.85,89.81,11.51405143]
[1771137116579,2.22109037,89.87,89.823,11.51934742]
[1771137116780,2.22109037,89.85,89.806,11.51934742]
[1771137117386,2.22109037,89.84,89.806,11.51934742]
[1771137120287,2.22109037,89.84,89.787,11.49947907]
[1771137120495,2.22109037,89.83,89.787,11.49947907]
[1771137120890,2.22109037,89.82,89.787,11.49947907]
[1771137121193,2.22109037,89.81,89.774,11.49947907]
[1771137121387,2.22109037,89.82,89.774,11.49947907]
[1771137122991,2.22259805,89.82,89.774,11.49947907]
[1771137123196,12.24509805,89.83,89.774,11.49947907]
[1771137123795,2.22259805,89.84,89.781,11.67215987]
[1771137124890,2.22259805,89.84,89.782,11.67279886]
[1771137125496,10.0215,89.839,89.782,11.67279886]
[1771137125792,2.22259805,89.83,89.782,11.67279886]
[1771137126190,2.22259805,89.82,89.782,11.67279886]
[1771137127696,2.22259805,89.83,89.782,11.67279886]
[1771137128494,2.22259805,89.82,89.782,11.67279886]
[1771137128896,12.24619805,89.82,89.782,11.67279886]
[1771137129097,2.22259805,89.82,89.782,11.67279886]
[1771137130390,2.22259805,89.83,89.782,11.67279886]
[1771137130592,20.21,89.834,89.782,11.67279886]
[1771137131702,2.22259805,89.83,89.782,11.67279886]
[1771137133393,20.21,89.834,89.785,11.69471526]
[1771137134697,20.21,89.834,89.786,10.0273]
[1771137134998,20.21,89.834,89.787,11.69835182]
[1771137135693,20.21,89.834,89.79,10.0268]
[1771137135898,20.21,89.834,89.791,11.69835182]
[1771137138098,2.22259805,89.83,89.791,11.69835182]
[1771137138703,20.21,89.834,89.791,11.69835182]
[1771137139599,2.22259805,89.83,89.791,11.69835182]
[1771137139901,20.21,89.834,89.791,11.69835182]
[1771137140104,2.22259805,89.83,89.791,11.69835182]
[1771137143306,20.21,89.834,89.791,11.69835182]
[1771137143898,2.22259805,89.83,89.791,11.69835182]
[1771137144806,20.21,89.834,89.791,11.69835182]
[1771137146605,2.22259805,89.83,89.791,11.69835182]
[1771137148708,20.21,89.834,89.791,11.69835182]
[1771137151306,2.22259805,89.83,89.791,11.69835182]
[1771137156109,2.22259805,89.83,89.753,27.69728899]
[1771137156110,2.22259805,89.82,89.778,11.67216982]
[1771137157215,2.22259805,89.81,89.778,11.67216982]
[1771137157419,2.22259805,89.8,89.766,11.68001265]
[1771137159715,2.22259805,89.82,89.771,11.68442175]
[1771137159919,2.22259805,89.83,89.771,11.68442175]
[1771137160916,2.22259805,89.83,89.772,10.0288]
[1771137161112,2.22259805,89.83,89.773,11.65988062]
[1771137162317,2.22259805,89.83,89.784,11.65067916]
[1771137162618,2.22259805,89.82,89.784,11.65067916]
[1771137165821,10.0224,89.83,89.784,11.65067916]
[1771137165822,12.24499805,89.83,89.784,11.65067916]
[1771137166722,2.22259805,89.82,89.784,11.65067916]
[1771137168023,2.22259805,89.83,89.784,11.65067916]
[1771137168224,2.22259805,89.82,89.784,11.65067916]
[1771137169623,2.22259805,89.82,89.765,11.73069652]
[1771137170924,2.22259805,89.8,89.765,11.73069652]
[1771137171427,2.22259805,89.81,89.765,11.73069652]
[1771137172517,10.0236,89.819,89.765,11.73069652]
[1771137172716,10.0225,89.829,89.771,11.7598426]
[1771137173020,2.22259805,89.83,89.781,11.7598426]
[1771137173226,20.64,89.831,89.781,11.7598426]
[1771137173725,20.64,89.831,89.782,10.0277]
[1771137174028,20.64,89.831,89.753,27.69728899]
[1771137174029,2.22259805,89.82,89.783,11.7598426]
[1771137174622,20.64,89.831,89.76,2.22259805]
[1771137174623,2.22259805,89.81,89.764,11.75916572]
[1771137177725,2.22259805,89.82,89.764,11.75916572]
[1771137179622,2.22259805,89.81,89.764,11.75916572]
[1771137182824,2.22259805,89.8,89.764,11.75916572]
[1771137183833,2.22259805,89.82,89.767,11.76515271]
[1771137184128,2.22259805,89.82,89.771,11.76515271]
[1771137184522,10.024,89.816,89.771,11.76515271]
[1771137184718,2.22259805,89.81,89.771,11.76515271]
[1771137184931,2.22323126,89.81,89.771,11.76515271]
[1771137186228,2.22323126,89.8,89.771,11.76515271]
[1771137188635,2.22323126,89.81,89.771,11.76515271]
[1771137188835,10.024,89.816,89.771,11.76515271]
[1771137189334,2.22323126,89.82,89.771,11.76515271]
[1771137190534,2.22323126,89.81,89.771,11.76515271]
[1771137191529,2.22323126,89.8,89.759,11.73883495]
[1771137194139,10.0244,89.812,89.759,11.73883495]
[1771137194140,2.22323126,89.81,89.759,11.73883495]
[1771137194534,2.22323126,89.81,89.76,2.22323126]
[1771137194737,2.22323126,89.81,89.761,11.75365457]
[1771137197540,2.22323126,89.82,89.771,11.75103817]
[1771137197742,10.0232,89.823,89.771,11.75103817]
[1771137198437,20.64,89.831,89.781,11.75095448]
[1771137199842,20.64,89.831,89.782,10.0277]
[1771137200042,20.64,89.831,89.783,11.75095448]
[1771137200442,2.22323126,89.84,89.783,11.75095448]
[1771137202543,2.22323126,89.82,89.783,11.75095448]
[1771137203547,15.56,89.819,89.783,11.75095448]
[1771137208549,2.22323126,89.81,89.783,5.448e-05]
[1771137208750,2.22323126,89.8,89.745,20.78152302]
[1771137208950,2.22323126,89.8,89.74,2.22323126]
[1771137208951,2.22323126,89.8,89.744,20.78152302]
[1771137209144,2.22323126,89.8,89.743,20.78152302]
[1771137209341,2.22323126,89.8,89.744,20.78152302]
[1771137209744,2.22323126,89.8,89.749,245.28267713]
[1771137210649,2.22323126,89.8,89.75,5.77292518]
[1771137213955,2.22323126,89.79,89.75,5.77292518]
[1771137214649,2.22323126,89.78,89.75,5.77292518]
[1771137215260,2.22323126,89.79,89.75,5.77292518]
[1771137215652,15.56,89.819,89.75,5.77292518]
[1771137215858,15.56,89.819,89.731,20.78152302]
[1771137215859,15.56,89.819,89.771,5.69549623]
[1771137220470,15.56,89.819,89.781,5.53670494]
[1771137224966,15.56,89.819,89.783,5.53223069]
[1771137225561,10.0214,89.839,89.783,5.53223069]
[1771137226673,2.22323126,89.82,89.774,5.53481241]